bitfinex-derivatives/quotes_SOLF0:USTF0_20250105
["timestamp","ask_amount","ask_price","bid_price","bid_amount"]
[1736091558685,2.3382,213.89,213.85,2.3386]
[1736091560181,2.3381,213.91,213.85,2.3386]
[1736091561190,2.3381,213.9,213.85,2.3386]
[1736091562088,9.72941511,213.9,213.85,2.3386]
[1736091565190,10.09131511,213.92,213.84,7.39131511]
[1736091565495,8.79841511,213.95,213.86,7.39131511]
[1736091565885,8.79841511,213.95,213.91,2.3379]
[1736091566889,8.79841511,213.95,213.9,2.3381]
[1736091567692,8.79841511,213.95,213.91,2.3379]
[1736091568900,8.79841511,213.95,213.86,7.39131511]
[1736091569102,11.13591511,213.95,213.9,2.3381]
[1736091570701,11.13591511,213.95,213.86,7.39131511]
[1736091570702,7.39131511,213.93,213.86,7.39131511]
[1736091570898,9.72911511,213.93,213.88,2.3382]
[1736091571404,9.72911511,213.93,213.89,2.3382]
[1736091571703,7.39131511,213.93,213.89,2.3382]
[1736091575202,7.39131511,213.93,213.86,7.39131511]
[1736091575807,7.39131511,213.93,213.88,2.3382]
[1736091576010,7.39131511,213.93,213.86,7.39131511]
[1736091576405,7.39131511,213.91,213.87,2.3383]
[1736091577006,7.39131511,213.89,213.76,2.859]
[1736091577208,7.39131511,213.89,213.8,7.39131511]
[1736091578009,9.72951511,213.89,213.86,2.3385]
[1736091579812,2.3383,213.88,213.77,2.7]
[1736091580112,2.3383,213.88,213.81,7.39131511]
[1736091580505,2.3383,213.88,213.83,2.3387]
[1736091580710,2.3385,213.86,213.79,10.09131511]
[1736091580907,2.3385,213.86,213.79,7.39131511]
[1736091581406,2.3385,213.86,213.81,2.339]
[1736091581806,2.3385,213.86,213.79,7.39131511]
[1736091582009,2.3385,213.86,213.82,2.3389]
[1736091582212,9.72971511,213.87,213.79,7.39131511]
[1736091583414,9.72971511,213.87,213.83,2.3388]
[1736091585920,7.39131511,213.87,213.83,2.3388]
[1736091586108,7.39131511,213.85,213.77,2.7]
[1736091586312,7.39131511,213.83,213.77,7.39131511]
[1736091587218,7.39131511,213.83,213.8,2.3391]
[1736091587913,7.39131511,213.83,213.81,2.339]
[1736091588216,7.39131511,213.85,213.77,7.39131511]
[1736091588509,2.7,213.86,213.79,7.39131511]
[1736091588713,2.7,213.86,213.81,7.39131511]
[1736091589423,2.7,213.86,213.84,2.3387]
[1736091591419,2.7,213.86,213.81,7.39131511]
[1736091591719,2.7,213.86,213.83,2.3388]
[1736091592522,7.39131511,213.85,213.82,2.3389]
[1736091596924,7.39131511,213.85,213.81,2.339]
[1736091600023,9.72991511,213.85,213.81,2.339]
[1736091600421,9.73021511,213.83,213.79,2.3393]
[1736091600629,7.39131511,213.8,213.73,10.09131511]
[1736091600821,7.39131511,213.8,213.73,7.39131511]
[1736091601424,2.3393,213.79,213.75,2.3397]
[1736091601623,2.3393,213.79,213.73,7.39131511]
[1736091602019,9.73061511,213.8,213.75,2.3397]
[1736091602224,7.39131511,213.8,213.75,2.3397]
[1736091602925,7.39131511,213.78,213.75,2.3397]
[1736091603122,7.39131511,213.76,213.75,2.3397]
[1736091603328,10.09131511,213.76,213.66,1.5177]
[1736091603626,7.39131511,213.73,213.65,7.39131511]
[1736091603828,7.39131511,213.71,213.65,7.39131511]
[1736091604130,7.39131511,213.71,213.67,2.3406]
[1736091604428,7.39131511,213.71,213.63,7.39131511]
[1736091604729,7.39131511,213.71,213.66,2.3407]
[1736091605326,7.39131511,213.71,213.7,14.14707]
[1736091605723,9.73151511,213.71,213.7,14.14707]
[1736091606429,1.377,213.75,213.7,14.14707]
[1736091606625,7.39131511,213.74,213.7,14.14707]
[1736091606829,5.2043,213.8,213.7,14.14707]
[1736091607032,7.39131511,213.78,213.71,7.39131511]
[1736091607529,7.39131511,213.78,213.74,2.3398]
[1736091607729,7.39131511,213.76,213.71,7.39131511]
[1736091607928,7.39131511,213.76,213.7,14.14707]
[1736091608126,7.39131511,213.76,213.7,16.48727]
[1736091608320,7.39131511,213.76,213.7,14.14707]
[1736091608818,7.39131511,213.74,213.71,2.3401]
[1736091609222,7.39131511,213.74,213.7,14.14707]
[1736091609223,7.39131511,213.72,213.7,14.14707]
[1736091609427,2.3402,213.71,213.7,14.14707]
[1736091612528,7.39131511,213.72,213.7,14.14707]
[1736091613025,1.5179,213.79,213.7,14.14707]
[1736091613232,7.39131511,213.75,213.7,14.14707]
[1736091613926,7.39131511,213.75,213.71,2.3401]
[1736091614325,2.7,213.77,213.71,2.3401]
[1736091614533,7.39131511,213.75,213.71,2.3401]
[1736091619634,7.39131511,213.73,213.71,2.3401]
[1736091620638,2.7,213.77,213.73,2.3398]
[1736091620838,7.39131511,213.75,213.7,14.14707]
[1736091621729,7.39131511,213.75,213.74,2.3398]
[1736091622137,7.39131511,213.75,213.7,14.14707]
[1736091622734,7.39131511,213.75,213.72,2.34]
[1736091624242,2.3396,213.76,213.72,2.34]
[1736091624443,7.39131511,213.75,213.72,2.34]
[1736091626845,2.7,213.77,213.74,2.3398]
[1736091627043,51.08,213.87,213.71,7.39131511]
[1736091627243,6.957,213.86,213.73,7.39131511]
[1736091627441,6.957,213.86,213.75,7.39131511]
[1736091627744,7.39131511,213.82,213.75,7.39131511]
[1736091627946,7.39131511,213.82,213.77,2.3395]
[1736091628138,7.39131511,213.82,213.75,7.39131511]
[1736091628541,4.257,213.86,213.75,7.39131511]
[1736091628744,7.39131511,213.82,213.75,7.39131511]
[1736091629145,7.39131511,213.82,213.79,2.3392]
[1736091631451,7.39131511,213.82,213.8,2.3392]
[1736091633056,7.39131511,213.82,213.79,2.3393]
[1736091636155,7.39131511,213.82,213.76,7.39131511]
[1736091636354,7.39131511,213.8,213.72,2.7]
[1736091636554,7.39131511,213.76,213.71,4.2249]
[1736091636756,7.39131511,213.76,213.73,2.3398]
[1736091637059,7.39131511,213.74,213.7,14.14707]
[1736091638356,7.39131511,213.74,213.72,2.3399]
[1736091638756,7.39131511,213.75,213.7,14.14707]
[1736091639152,2.339,213.82,213.76,2.3396]
[1736091639452,7.39131511,213.79,213.72,7.39131511]
[1736091640357,7.39131511,213.79,213.76,2.3396]
[1736091642958,2.7,213.82,213.7,21.53838511]
[1736091642959,7.39131511,213.77,213.7,21.53838511]
[1736091643158,7.39131511,213.75,213.7,21.53838511]
[1736091643352,7.39131511,213.75,213.7,14.14707]
[1736091644455,7.39131511,213.75,213.72,2.34]
[1736091645662,9.73081511,213.77,213.73,2.3399]
[1736091646963,7.39131511,213.77,213.73,2.3399]
[1736091647159,4.257,213.86,213.76,2.3396]
[1736091647365,7.39131511,213.79,213.72,7.39131511]
[1736091647868,7.39131511,213.79,213.74,2.3398]
[1736091648163,7.39131511,213.79,213.72,7.39131511]
[1736091649364,7.39131511,213.79,213.76,2.3396]
[1736091650566,7.39131511,213.79,213.72,7.39131511]
[1736091650767,7.39131511,213.79,213.75,2.3397]
[1736091651664,7.39131511,213.79,213.75,10.2597]
[1736091655275,9.73061511,213.79,213.75,10.2597]
[1736091655974,9.73061511,213.79,213.75,7.92]
[1736091657578,2.3391,213.81,213.76,2.3396]
[1736091657777,4.257,213.86,213.75,15.31131511]
[1736091657778,7.39131511,213.82,213.75,15.31131511]
[1736091659475,9.73031511,213.82,213.77,2.3395]
[1736091660780,2.3389,213.83,213.78,2.3394]
[1736091660983,7.39131511,213.82,213.78,2.3394]
[1736091663375,9.73031511,213.82,213.78,2.3394]
[1736091664478,190.9661558,213.92,213.79,7.39131511]
[1736091664784,7.39131511,213.86,213.81,2.339]
[1736091664973,9.72991511,213.86,213.81,2.339]
[1736091665174,7.39131511,213.86,213.81,2.339]
[1736091665480,7.39131511,213.82,213.75,7.39131511]
[1736091665674,9.73041511,213.82,213.75,7.39131511]
[1736091666074,7.39131511,213.82,213.75,7.39131511]
[1736091666271,2.7,213.85,213.79,7.39131511]
[1736091666479,10.09131511,213.85,213.79,7.39131511]
[1736091666675,7.39131511,213.85,213.79,7.39131511]
[1736091667581,7.39131511,213.85,213.81,2.339]
[1736091669879,9.72991511,213.85,213.81,2.339]
[1736091670080,9.72991511,213.85,213.8,2.3392]
[1736091670680,7.39131511,213.81,213.78,5.0393]
[1736091671081,7.39131511,213.81,213.78,2.3393]
[1736091671983,7.39131511,213.79,213.71,14.49451511]
[1736091672986,7.39131511,213.79,213.71,11.79451511]
[1736091673686,7.39131511,213.77,213.71,4.4032]
[1736091673985,9.73101511,213.75,213.71,2.3401]
[1736091674379,4.4313,213.82,213.7,14.14707]
[1736091674380,7.39131511,213.73,213.7,14.14707]
[1736091674583,7.39131511,213.71,213.7,9.17907]
[1736091674784,10.09131511,213.71,213.7,9.17907]
[1736091676987,14.2766102,213.71,213.7,6.88447]
[1736091678990,16.6168102,213.71,213.7,6.88447]
[1736091685200,14.2766102,213.71,213.57,4.3847]
[1736091685395,11.5766102,213.67,213.57,4.3847]
[1736091685696,2.7,213.66,213.57,4.3847]
[1736091685896,2.3409,213.64,213.58,2.3415]
[1736091686096,2.7,213.65,213.58,2.3415]
[1736091686296,2.7,213.65,213.57,4.3847]
[1736091687301,2.3411,213.63,213.57,6.7264]
[1736091687506,2.3411,213.63,213.57,3.7294]
[1736091688997,11.5766102,213.64,213.57,3.7294]
[1736091689197,11.5766102,213.64,213.57,1.3877]
[1736091690106,2.3412,213.62,213.57,1.3877]
[1736091690304,11.5766102,213.64,213.57,1.3877]
[1736091690697,2.3412,213.62,213.57,1.3877]
[1736091690901,2.3412,213.62,213.57,3.7294]
[1736091691504,11.5766102,213.64,213.6,2.3414]
[1736091691698,2.7,213.65,213.57,1.3877]
[1736091693207,2.7,213.65,213.61,2.3412]
[1736091693499,2.3407,213.66,213.61,2.3412]
[1736091693806,2.7,213.66,213.63,2.3409]
[1736091694303,2.7,213.67,213.64,2.3408]
[1736091694507,2.7,213.67,213.63,6.82]
[1736091694705,5.0404,213.69,213.63,6.82]
[1736091695502,5.0404,213.69,213.65,2.3408]
[1736091696204,2.3405,213.68,213.63,6.82]
[1736091697006,7.40764902,213.67,213.63,6.82]
[1736091697501,7.40764902,213.67,213.64,2.3409]
[1736091701006,7.40764902,213.65,213.63,6.82]
[1736091701835,5.0409,213.64,213.63,6.82]
[1736091708108,10.10764902,213.64,213.63,6.82]
[1736091709515,2.3403,213.7,213.65,2.3407]
[1736091709716,7.40764902,213.66,213.65,2.3407]
[1736091712319,7.40764902,213.66,213.59,7.40764902]
[1736091712320,7.40764902,213.66,213.64,2.3409]
[1736091717715,7.40764902,213.66,213.62,2.3411]
[1736091717921,7.40764902,213.64,213.62,2.3411]
[1736091718121,7.40764902,213.64,213.58,1.4308]
[1736091718321,7.40764902,213.62,213.6,2.3413]
[1736091718722,7.40764902,213.62,213.58,1.4308]
[1736091718917,7.40764902,213.62,213.59,2.3415]
[1736091719115,10.10764902,213.62,213.59,2.3415]
[1736091722427,7.40764902,213.6,213.59,2.3415]
[1736091722917,7.40764902,213.6,213.58,1.4308]
[1736091723122,7.40764902,213.6,213.59,5.71]
[1736091724823,7.40764902,213.6,213.59,8.0515]
[1736091725226,10.10764902,213.62,213.59,5.71]
[1736091725419,10.10764902,213.62,213.6,2.3413]
[1736091741834,10.10764902,213.62,213.54,7.40764902]
[1736091742040,10.10764902,213.62,213.61,2.3413]
[1736091742634,7.40764902,213.62,213.61,2.3413]
[1736091744438,7.40764902,213.62,213.6,2.3413]
[1736091753558,129.8550254,213.69,213.56,7.40764902]
[1736091753758,7.40764902,213.67,213.6,7.40764902]
[1736091754260,7.40764902,213.67,213.65,2.3407]
[1736091755759,7.40764902,213.67,213.6,7.40764902]
[1736091755959,7.40764902,213.65,213.64,2.3409]
[1736091756564,2.7,213.67,213.65,2.3408]
[1736091756758,7.40764902,213.66,213.65,2.3408]
[1736091760462,7.40764902,213.66,213.65,9.4108]
[1736091761665,7.40764902,213.68,213.65,7.07]
[1736091762666,2.7,213.71,213.68,2.3405]
[1736091762667,7.40764902,213.7,213.68,2.3405]
[1736091763168,2.7,213.73,213.65,7.07]
[1736091763363,2.7,213.73,213.66,7.40764902]
[1736091763364,7.40764902,213.72,213.66,7.40764902]
[1736091763764,7.40764902,213.7,213.67,2.3405]
[1736091764863,7.40764902,213.68,213.67,2.3405]
[1736091765669,2.3401,213.72,213.65,7.07]
[1736091765867,7.40764902,213.69,213.68,2.3405]
[1736091776176,7.40764902,213.69,213.65,7.07]
[1736091776377,7.40764902,213.66,213.65,9.4108]
[1736091777974,7.40764902,213.68,213.65,7.07]
[1736091779178,7.40764902,213.68,213.66,2.3406]
[1736091780076,7.40764902,213.68,213.67,2.3406]
[1736091780878,7.40764902,213.68,213.66,2.3407]
[1736091783880,7.40764902,213.69,213.66,2.3407]
[1736091788283,7.40764902,213.67,213.66,2.3407]
[1736091791784,7.40764902,213.67,213.62,1.3976]
[1736091791986,7.40764902,213.65,213.63,2.341]
[1736091794484,7.40764902,213.65,213.62,2.3411]
[1736091794785,7.40764902,213.63,213.56,1.3771]
[1736091794989,2.7,213.68,213.56,1.3771]
[1736091795287,7.40764902,213.62,213.56,1.3771]
[1736091796384,7.40764902,213.62,213.58,2.3416]
[1736091799989,7.40764902,213.62,213.59,2.3414]
[1736091800390,2.3407,213.67,213.57,7.40764902]
[1736091800591,7.40764902,213.65,213.63,2.341]
[1736091802091,7.40764902,213.65,213.62,2.3411]
[1736091806793,7.40764902,213.63,213.62,2.3411]
[1736091820510,7.40764902,213.63,213.52,2.9599]
[1736091820511,7.40764902,213.63,213.52,10.36754902]
[1736091820710,7.40764902,213.59,213.52,10.36754902]
[1736091820908,8.32987908,213.69,213.58,7.40764902]
[1736091821105,7.40764902,213.65,213.58,7.40764902]
[1736091822611,2.3408,213.65,213.61,2.3412]
[1736091823314,1.3904,213.71,213.6,7.40764902]
[1736091823514,7.40764902,213.69,213.62,7.40764902]
[1736091824111,7.40764902,213.69,213.66,2.3407]
[1736091824307,10.08764902,213.71,213.64,7.40764902]
[1736091825414,12.42784902,213.71,213.66,2.3407]
[1736091827217,9.74784902,213.71,213.66,2.3407]
[1736091827510,12.42784902,213.71,213.66,2.3407]
[1736091827718,7.40764902,213.69,213.66,2.3407]
[1736091831117,7.40764902,213.67,213.66,2.3407]
[1736091832121,7.40764902,213.67,213.65,2.3408]
[1736091834122,7.40764902,213.67,213.66,2.3407]
[1736091839325,3.8612,213.72,213.68,2.3405]
[1736091839529,1.5045,213.77,213.64,7.40764902]
[1736091839724,7.40764902,213.72,213.64,7.40764902]
[1736091840126,7.40764902,213.72,213.66,2.3407]
[1736091840322,7.40764902,213.72,213.64,7.40764902]
[1736091840726,7.40764902,213.72,213.64,12.93764902]
[1736091841118,7.40764902,213.72,213.66,7.40764902]
[1736091841322,2.68,213.75,213.66,7.40764902]
[1736091841524,7.40764902,213.73,213.66,7.40764902]
[1736091841729,5.0197,213.75,213.7,2.3402]
[1736091841930,7.40764902,213.73,213.7,2.3402]
[1736091842331,7.40764902,213.71,213.68,2.3404]
[1736091843931,7.40764902,213.71,213.69,2.3403]
[1736091844733,2.68,213.74,213.65,7.40764902]
[1736091845033,7.40764902,213.73,213.65,7.40764902]
[1736091847332,2.68,213.75,213.65,7.40764902]
[1736091847533,7.40764902,213.73,213.72,2.34]
[1736091848829,7.40764902,213.75,213.67,7.40764902]
[1736091849034,7.40764902,213.76,213.75,2.3396]
[1736091851134,7.40764902,213.76,213.73,2.3399]
[1736091851435,7.40764902,213.73,213.68,1.4416]
[1736091851636,7.40764902,213.73,213.71,2.3401]
[1736091852233,7.40764902,213.73,213.72,2.34]
[1736091858836,7.40764902,213.75,213.74,2.3398]
[1736091864942,7.40764902,213.75,213.72,2.34]
[1736091865245,7.40764902,213.73,213.72,2.34]
[1736091866742,7.40764902,213.73,213.7,2.3402]
[1736091866946,7.40764902,213.71,213.7,2.3402]
[1736091868451,2.68,213.77,213.65,7.40764902]
[1736091868647,7.40764902,213.75,213.73,2.3399]
[1736091870249,7.40764902,213.75,213.74,2.3398]
[1736091874749,7.40764902,213.75,213.66,2.68]
[1736091874950,7.40764902,213.75,213.73,2.3399]
[1736091882653,7.40764902,213.75,213.66,7.40764902]
[1736091882855,7.40764902,213.72,213.66,7.40764902]
[1736091883257,7.40764902,213.72,213.71,2.3402]
[1736091884357,2.3395,213.77,213.73,2.3399]
[1736091884556,7.40764902,213.74,213.66,7.40764902]
[1736091884859,7.40764902,213.74,213.63,4.0716]
[1736091885159,7.40764902,213.74,213.68,7.40764902]
[1736091886554,7.40764902,213.74,213.73,2.3399]
[1736091892369,7.40764902,213.74,213.73,9.7499]
[1736091893574,7.40764902,213.74,213.73,7.41]
[1736091901475,9.74744902,213.74,213.73,7.41]
[1736091903378,2.68,213.76,213.73,7.41]
[1736091903379,5.0197,213.76,213.73,7.41]
[1736091903578,2.68,213.76,213.73,7.41]
[1736091904175,12.42724902,213.76,213.73,7.41]
[1736091904378,7.40764902,213.74,213.73,7.41]
[1736091904775,9.74744902,213.74,213.73,7.41]
[1736091906878,7.40764902,213.74,213.63,1.3916]
[1736091907080,7.40764902,213.66,213.61,1.3807]
[1736091907475,5.0203,213.7,213.65,2.3408]
[1736091907681,7.40764902,213.68,213.61,1.3807]
[1736091907880,7.40764902,213.66,213.59,7.40764902]
[1736091908080,7.40764902,213.66,213.62,2.341]
[1736091908882,2.3406,213.67,213.59,7.40764902]
[1736091909078,7.40764902,213.66,213.62,2.3411]
[1736091911886,2.3406,213.67,213.63,2.341]
[1736091912086,7.40764902,213.66,213.63,2.341]
[1736091912385,7.40764902,213.68,213.65,2.3408]
[1736091913787,7.40764902,213.68,213.66,2.3407]
[1736091915589,7.40764902,213.68,213.6,7.40764902]
[1736091915789,7.40764902,213.68,213.65,2.3408]
[1736091915991,7.40764902,213.66,213.57,2.9101]
[1736091916189,7.40764902,213.66,213.61,2.3412]
[1736091916489,7.40764902,213.66,213.59,7.40764902]
[1736091916890,7.40764902,213.66,213.63,2.3409]
[1736091917885,7.40764902,213.66,213.59,7.40764902]
[1736091918089,7.40764902,213.66,213.64,2.3409]
[1736091919595,7.40764902,213.68,213.61,7.40764902]
[1736091921489,7.40764902,213.68,213.65,2.3407]
[1736091921993,5.0203,213.7,213.65,2.3407]
[1736091922197,7.40764902,213.68,213.66,2.3407]
[1736091925692,5.0203,213.7,213.67,2.3406]
[1736091925693,2.68,213.7,213.67,2.3406]
[1736091925999,7.40764902,213.69,213.63,7.40764902]
[1736091926398,7.40764902,213.69,213.67,2.3405]
[1736091927902,5.0202,213.71,213.67,2.3405]
[1736091928099,7.40764902,213.7,213.67,2.3405]
[1736091931402,7.40764902,213.68,213.61,7.40764902]
[1736091931605,7.40764902,213.68,213.66,2.3407]
[1736091932596,7.40764902,213.68,213.64,2.3408]
[1736091932798,7.40764902,213.66,213.59,7.40764902]
[1736091933206,7.40764902,213.66,213.64,2.3408]
[1736091933498,7.40764902,213.66,213.59,7.40764902]
[1736091934101,7.40764902,213.66,213.64,2.3409]
[1736091937201,7.40764902,213.66,213.62,2.341]
[1736091937404,7.40764902,213.64,213.62,2.341]
[1736091941413,9.74854902,213.64,213.6,2.3413]
[1736091941708,7.40764902,213.61,213.6,2.3413]
[1736091946217,7.40764902,213.61,213.56,49.40837541]
[1736091946218,7.40764902,213.61,213.59,2.3415]
[1736091946419,7.40764902,213.59,213.56,49.40837541]
[1736091946614,7.40764902,213.57,213.51,1.5018]
[1736091946819,7.40764902,213.55,213.51,1.5018]
[1736091947219,7.40764902,213.55,213.54,2.342]
[1736091948622,7.40764902,213.55,213.5,6.86891911]
[1736091948821,2.68,213.61,213.5,6.86891911]
[1736091948822,7.40764902,213.51,213.5,6.86891911]
[1736091949323,7.40764902,213.51,213.47,2.3428]
[1736091949519,7.40764902,213.49,213.4,2.9643]
[1736091949720,7.40764902,213.47,213.4,10.37194902]
[1736091949919,7.40764902,213.47,213.46,2.3429]
[1736091958222,1.4425,213.59,213.49,2.3426]
[1736091958432,7.40764902,213.5,213.44,7.40764902]
[1736091958830,7.40764902,213.5,213.42,7.40764902]
[1736091959832,7.40764902,213.5,213.49,2.3426]
[1736091960234,7.40764902,213.5,213.42,7.40764902]
[1736091960235,7.40764902,213.5,213.4,2.9643]
[1736091960434,2.68,213.53,213.48,2.3427]
[1736091960628,1.4425,213.59,213.48,2.3427]
[1736091960935,2.68,213.58,213.48,2.3427]
[1736091961133,2.68,213.58,213.49,2.3425]
[1736091961334,1.4425,213.59,213.43,7.40764902]
[1736091961526,7.40764902,213.51,213.45,7.40764902]
[1736091961731,7.40764902,213.55,213.47,7.40764902]
[1736091962431,7.40764902,213.53,213.47,7.40764902]
[1736091962627,5.0217,213.57,213.47,7.40764902]
[1736091962943,7.40764902,213.54,213.47,7.40764902]
[1736091963425,7.40764902,213.54,213.52,2.3422]
[1736091964434,7.40764902,213.54,213.44,10.08764902]
[1736091964435,7.40764902,213.54,213.44,2.68]
[1736091964631,7.40764902,213.49,213.44,2.68]
[1736091965026,7.40764902,213.49,213.4,2.9643]
[1736091965232,7.40764902,213.47,213.46,2.3429]
[1736091966134,7.40764902,213.49,213.48,2.3427]
[1736091968443,7.40764902,213.49,213.4,11.87944902]
[1736091968736,2.68,213.53,213.45,2.343]
[1736091968938,2.68,213.53,213.4,2.9535]
[1736091969129,2.3426,213.49,213.44,2.3431]
[1736091969334,2.68,213.48,213.44,2.3431]
[1736091969529,2.68,213.48,213.4,2.9535]
[1736091969730,1.5063,213.52,213.4,2.9535]
[1736091969933,7.40764902,213.49,213.41,7.40764902]
[1736091970137,7.40764902,213.49,213.41,10.08764902]
[1736091970441,7.40764902,213.49,213.43,7.40764902]
[1736091970636,7.40764902,213.49,213.48,2.3427]
[1736091973447,2.68,213.53,213.51,2.3423]
[1736091973641,7.40764902,213.52,213.51,2.3423]
[1736091977445,7.40764902,213.52,213.4,2.9535]
[1736091977745,7.40764902,213.48,213.41,10.08764902]
[1736091977946,7.40764902,213.48,213.41,7.40764902]
[1736091978345,7.40764902,213.46,213.41,7.40764902]
[1736091978548,7.40764902,213.46,213.4,2.9535]
[1736091979543,7.40764902,213.46,213.45,2.343]
[1736091981949,7.40764902,213.46,213.43,2.3432]
[1736091982248,7.40764902,213.44,213.43,2.3432]
[1736091982449,7.40764902,213.44,213.42,2.3433]
[1736091982649,7.40764902,213.43,213.42,2.3433]
[1736091983249,7.40764902,213.43,213.38,2.3437]
[1736091983552,7.40764902,213.4,213.34,7.40764902]
[1736091984450,7.40764902,213.4,213.39,2.3437]
[1736091984944,7.40764902,213.42,213.41,2.3434]
[1736091986552,5.0227,213.48,213.44,2.3431]
[1736091989846,7.40764902,213.45,213.44,2.3431]
[1736091992053,1.4374,213.52,213.42,7.40764902]
[1736091992261,7.40764902,213.51,213.44,7.40764902]
[1736091992552,9.15141902,213.53,213.52,2.3422]
[1736091993563,1.74377,213.53,213.52,2.3422]
[1736091995055,1.74377,213.53,213.52,7.8322]
[1736091996558,9.15141902,213.53,213.52,5.49]
[1736091998262,7.40764902,213.49,213.45,2.68]
[1736091998961,7.40764902,213.49,213.48,2.3427]
[1736092007961,7.40764902,213.51,213.45,2.68]
[1736092008263,7.40764902,213.51,213.49,2.3425]
[1736092009764,7.40764902,213.51,213.5,2.3425]
[1736092010261,1.74377,213.53,213.49,7.40764902]
[1736092010557,1.74377,213.53,213.52,2.3422]
[1736092013856,1.4937,213.64,213.52,7.40764902]
[1736092014061,7.40764902,213.62,213.57,7.40764902]
[1736092014962,11.5775451,213.67,213.62,2.3411]
[1736092015664,13.9181451,213.67,213.61,2.3412]
[1736092019471,2.3407,213.66,213.61,2.3412]
[1736092020562,11.5775451,213.64,213.6,2.3413]
[1736092022668,11.5775451,213.64,213.61,2.3412]
[1736092023866,11.5775451,213.64,213.55,2.68]
[1736092023867,11.5775451,213.64,213.62,2.3411]
[1736092024167,11.5775451,213.64,213.55,2.68]
[1736092024571,11.5775451,213.67,213.55,2.68]
[1736092025274,11.5775451,213.67,213.58,2.3415]
[1736092025475,11.5775451,213.67,213.55,2.68]
[1736092025669,2.68,213.7,213.56,11.5775451]
[1736092026369,11.5775451,213.71,213.56,11.5775451]
[1736092026570,14.2575451,213.71,213.56,11.5775451]
[1736092026973,2.68,213.71,213.56,11.5775451]
[1736092027171,11.5775451,213.7,213.56,11.5775451]
[1736092027370,11.5775451,213.7,213.65,2.3408]
[1736092028276,2.3405,213.69,213.63,2.341]
[1736092030075,2.3405,213.69,213.64,2.3409]
[1736092031676,2.3405,213.68,213.63,2.341]
[1736092031874,11.5775451,213.7,213.56,11.5775451]
[1736092033378,13.9178451,213.7,213.65,2.3408]
[1736092035378,11.5775451,213.73,213.6,2.68]
[1736092035578,14.2575451,213.73,213.61,6.9731]
[1736092035880,11.5775451,213.73,213.61,6.9731]
[1736092036674,11.5775451,213.73,213.69,2.3403]
[1736092036880,11.5775451,213.73,213.62,11.5775451]
[1736092037081,7.40405172,213.72,213.65,7.40405172]
[1736092037480,7.40405172,213.75,213.67,7.40405172]
[1736092037881,7.40405172,213.75,213.73,2.3399]
[1736092038081,7.40405172,213.75,213.67,7.40405172]
[1736092038387,7.40405172,213.75,213.69,7.40405172]
[1736092038579,7.40405172,213.75,213.74,2.3398]
[1736092038778,7.40405172,213.75,213.69,7.40405172]
[1736092039581,7.40405172,213.75,213.74,2.3398]
[1736092040878,7.40405172,213.75,213.73,2.3399]
[1736092042380,7.40405172,213.75,213.71,2.3401]
[1736092042979,7.40405172,213.75,213.72,2.34]
[1736092048684,7.40405172,213.76,213.74,2.3398]
[1736092049387,7.40405172,213.76,213.75,2.3397]
[1736092049587,2.3394,213.79,213.75,2.3397]
[1736092049992,7.40405172,213.77,213.75,2.3397]
[1736092051690,7.40405172,213.77,213.67,10.08405172]
[1736092051889,2.68,213.81,213.67,7.40405172]
[1736092051890,7.40405172,213.72,213.67,7.40405172]
[1736092052091,7.40405172,213.72,213.7,2.3402]
[1736092057695,7.40405172,213.72,213.67,7.40405172]
[1736092057895,7.40405172,213.72,213.71,2.3402]
[1736092058898,7.40405172,213.74,213.72,2.34]
[1736092059396,4.1893,213.83,213.69,7.40405172]
[1736092059706,7.40405172,213.77,213.76,2.3395]
[1736092060997,4.1893,213.83,213.73,7.40405172]
[1736092061196,7.40405172,213.79,213.78,2.3393]
[1736092061396,2.7949,213.83,213.75,7.40405172]
[1736092061599,7.40405172,213.81,213.75,7.40405172]
[1736092061794,7.40405172,213.81,213.8,2.3392]
[1736092062404,2.7949,213.83,213.8,2.3392]
[1736092062600,2.3385,213.86,213.81,2.3391]
[1736092062806,7.40405172,213.83,213.81,2.3391]
[1736092063407,2.68,213.86,213.81,2.3391]
[1736092063709,7.40405172,213.83,213.82,2.339]
[1736092064213,7.40405172,213.83,213.71,4.3747]